fUST/lending_fUST_20251130
["ID","MTS","AMOUNT","RATE_DAILY","PERIOD"]
[395110414,1764445448499,597.88,2e-05,2]
[395110415,1764445448774,597.88,2.1e-05,2]
[395110416,1764445449245,597.88,2.1e-05,2]
[395110417,1764445449399,597.88,2.2e-05,2]
[395110418,1764445449716,597.88,2.2e-05,2]
[395110419,1764445450006,597.88,2.3e-05,2]
[395110420,1764445450320,597.88,2.3e-05,2]
[395110421,1764445450763,597.88,2.4e-05,2]
[395110422,1764445451091,597.88,2.4e-05,2]
[395110423,1764445451396,597.88,2.5e-05,2]
[395110424,1764445451690,597.88,2.5e-05,2]
[395110425,1764445451976,597.88,2.6e-05,2]
[395110426,1764445452299,597.88,2.7e-05,2]
[395110427,1764445452616,597.88,2.7e-05,2]
[395110428,1764445453008,597.88,2.8e-05,2]
[395110429,1764445453364,597.88,2.8e-05,2]
[395110430,1764445458064,597.88,2.9e-05,2]
[395110431,1764445458391,597.88,2.9e-05,2]
[395110432,1764445458910,597.88,3e-05,2]
[395110433,1764445459014,597.88,3e-05,2]
[395110434,1764445459273,597.88,3.1e-05,2]
[395110435,1764445459567,597.88,3.1e-05,2]
[395110436,1764445459856,597.88,3.2e-05,2]
[395110437,1764445460195,597.88,3.2e-05,2]
[395110438,1764445460625,597.88,3.3e-05,2]
[395110439,1764445460929,597.88,3.3e-05,2]
[395110440,1764445461421,597.88,3.4e-05,2]
[395110441,1764445461557,597.88,3.5e-05,2]
[395110442,1764445461918,597.88,3.5e-05,2]
[395110443,1764445462275,597.88,3.6e-05,2]
[395110444,1764445462702,597.88,3.6e-05,2]
[395110445,1764445474866,300.0,0.00010802,2]
[395110446,1764445482627,300.0,0.00010802,2]
[395110447,1764445502274,395.9,1e-05,2]
[395110448,1764445502781,395.9,1.1e-05,2]
[395110449,1764445503125,395.9,1.1e-05,2]
[395110450,1764445503440,395.9,1.2e-05,2]
[395110451,1764445503728,395.9,1.2e-05,2]
[395110452,1764445504008,395.9,1.3e-05,2]
[395110453,1764445504310,395.9,1.3e-05,2]
[395110454,1764445504608,395.9,1.4e-05,2]
[395110455,1764445504895,300.0,0.00010802,2]
[395110456,1764445504935,395.9,1.4e-05,2]
[395110457,1764445505203,395.9,1.5e-05,2]
[395110458,1764445505487,395.9,1.5e-05,2]
[395110459,1764445505819,395.9,1.6e-05,2]
[395110460,1764445506147,395.9,1.6e-05,2]
[395110461,1764445506434,395.9,1.7e-05,2]
[395110462,1764445506757,395.9,1.7e-05,2]
[395110463,1764445507032,395.9,1.8e-05,2]
[395110464,1764445507332,395.9,1.9e-05,2]
[395110465,1764445507749,395.9,1.9e-05,2]
[395110466,1764445508060,395.9,2e-05,2]
[395110467,1764445508371,395.9,2e-05,2]
[395110468,1764445508722,395.9,2.1e-05,2]
[395110469,1764445509043,395.9,2.1e-05,2]
[395110470,1764445509372,395.9,2.2e-05,2]
[395110471,1764445509913,395.9,2.2e-05,2]
[395110472,1764445510052,395.9,2.3e-05,2]
[395110473,1764445510288,395.9,2.3e-05,2]
[395110474,1764445511222,395.9,2.4e-05,2]
[395110475,1764445511590,395.9,2.4e-05,2]
[395110476,1764445511910,395.9,2.5e-05,2]
[395110477,1764445512214,395.9,2.5e-05,2]
[395110478,1764445512518,395.9,2.6e-05,2]
[395110479,1764445512651,300.0,0.00010802,2]
[395110480,1764445512831,395.9,2.7e-05,2]
[395110481,1764445513141,395.9,2.7e-05,2]
[395110482,1764445513446,395.9,2.8e-05,2]
[395110483,1764445513741,395.9,2.8e-05,2]
[395110484,1764445514040,395.9,2.9e-05,2]
[395110485,1764445514381,395.9,2.9e-05,2]
[395110486,1764445515316,395.9,3e-05,2]
[395110487,1764445515689,395.9,3e-05,2]
[395110488,1764445515989,395.9,3.1e-05,2]
[395110489,1764445516295,395.9,3.1e-05,2]
[395110490,1764445516593,395.9,3.2e-05,2]
[395110491,1764445516981,395.9,3.2e-05,2]
[395110492,1764445517278,395.9,3.3e-05,2]
[395110493,1764445517625,395.9,3.3e-05,2]
[395110494,1764445517926,395.9,3.4e-05,2]
[395110495,1764445518256,395.9,3.5e-05,2]
[395110496,1764445518536,395.9,3.5e-05,2]
[395110497,1764445518837,395.9,3.6e-05,2]
[395110498,1764445519114,395.9,3.6e-05,2]
[395110499,1764445520805,300.0,0.00010802,2]
[395110500,1764445529036,300.0,0.00010802,2]
[395110501,1764445537071,300.0,0.00010802,2]
[395110502,1764445544831,300.0,0.00010802,2]
[395110503,1764445552919,300.0,0.00010802,2]
[395110504,1764445560701,300.0,0.00010802,2]
[395110505,1764445568672,300.0,0.00010802,2]
[395110506,1764445576436,300.0,0.00010802,2]
[395110507,1764445584531,300.0,0.00010802,2]
[395110508,1764445592276,300.0,0.00010802,2]
[395110509,1764445600400,300.0,0.00010802,2]
[395110510,1764445608411,300.0,0.00010802,2]
[395110511,1764445616846,300.0,0.00010802,2]
[395110512,1764445624608,300.0,0.00010802,2]
[395110513,1764445633109,300.0,0.00010802,2]
[395110514,1764445641439,300.0,0.00010802,2]
[395110515,1764445649370,300.0,0.00010802,2]
[395110516,1764445657106,300.0,0.00010802,2]
[395110517,1764445665370,300.0,0.00010802,2]
[395110518,1764445672975,300.0,0.00010802,2]
[395110519,1764445681435,1132.0,0.00010802,2]
[395110520,1764445689175,1132.0,0.00010802,2]
[395110521,1764445697223,1132.0,0.00010802,2]
[395110523,1764445705421,1132.0,0.00010802,2]
[395110524,1764445713429,1132.0,0.00010802,2]
[395110527,1764445719927,180.215421,0.00014,10]
[395110528,1764445721136,1132.0,0.00010802,2]
[395110529,1764445729249,1132.0,0.00010802,2]
[395110531,1764445737109,1132.0,0.00010802,2]
[395110532,1764445745183,1132.0,0.00010802,2]
[395110536,1764445752952,1132.0,0.00010802,2]
[395110538,1764445761323,1132.0,0.00010802,2]
[395110539,1764445769303,1132.0,0.00010802,2]
[395110556,1764445777066,1132.0,0.00010802,2]
[395110557,1764445784771,1132.0,0.00010802,2]
[395110558,1764445792539,1132.0,0.00010802,2]
[395110563,1764445800570,1132.0,0.00010802,2]
[395110564,1764445808260,1132.0,0.00010802,2]
[395110566,1764445816829,1818.0,0.00010802,2]
[395110567,1764445825165,1818.0,0.00010802,2]
[395110585,1764445832406,-832.0,0.00010911,2]
[395110586,1764445832415,-300.0,0.00010911,2]
[395110587,1764445832424,-686.0,0.00010911,2]
[395110588,1764445832433,-189.71931736,0.00010912,2]
[395110589,1764445832442,-13045.17432583,0.00010912,2]
[395110590,1764445832492,-673.77250281,0.00010912,2]
[395110601,1764445834164,1818.0,0.00010802,2]
[395110618,1764445838616,-2171.90664597,0.00010912,2]
[395110798,1764445840670,-4490.43785419,0.00010912,2]
[395110986,1764445843765,-37628.79600806,0.00010912,2]
[395110987,1764445843780,-19774.55094384,0.00010912,2]
[395110988,1764445843795,-109477.4765092,0.00010912,2]
[395110989,1764445843811,-13427.95003579,0.00010912,2]
[395110991,1764445843825,-1844.02721932,0.00010912,2]
[395110994,1764445843840,-173970.11775578,0.00010912,2]
[395110996,1764445843855,-120638.48589384,0.00010912,2]
[395110997,1764445843869,-10000.0,0.00010912,2]
[395110998,1764445844206,16370.93497872,0.00010803,2]
[395111003,1764445846674,-23365.08422874,0.00010912,2]
[395111004,1764445849885,6914.65439113,0.00010803,2]
[395111005,1764445849912,15944.50510006,0.00010803,2]
[395111006,1764445857603,15868.05443664,0.00010803,2]
[395111007,1764445888223,2575.47614732,0.00013561,30]
[395111015,1764445986874,880.6895328,9.978e-05,2]
[395111016,1764446097631,1302.6550347,8.907e-05,2]
[395111017,1764446098948,1302.6550347,9.451e-05,2]
[395111018,1764446099270,1302.6550347,9.996e-05,2]
[395111019,1764446099950,1302.6550347,0.0001054,2]
[395111020,1764446121429,212.98482957,9.232e-05,2]
[395111021,1764446121698,1242.20681591,8.907e-05,2]
[395111022,1764446122256,1242.20681591,9.705e-05,2]
[395111023,1764446122928,1242.20681591,0.00010503,2]
[395111024,1764446177476,1278.19335279,8.907e-05,2]
[395111025,1764446178136,1278.19335279,9.437e-05,2]
[395111026,1764446178794,1278.19335279,9.968e-05,2]
[395111027,1764446180117,1278.19335279,0.00010499,2]
[395111028,1764446241507,213.15848735,9.232e-05,2]
[395111029,1764446279269,97811.86,0.000215,120]
[395111030,1764446294683,391.71442035,0.00010824,2]
[395111031,1764446337392,213.15866101,9.232e-05,2]
[395111032,1764446361390,213.15866118,9.232e-05,2]
[395111033,1764446396252,254.2131585,9.993e-05,2]
[395111034,1764446406796,720.82147831,9.232e-05,2]
[395111035,1764446425595,213.666324,9.232e-05,2]
[395111036,1764446440148,45823.86091254,0.00010808,2]
[395111037,1764446440191,844176.13908746,0.00010808,2]
[395111038,1764446442149,213.15916885,9.232e-05,2]
[395111039,1764446473620,1096.35067612,8.907e-05,2]
[395111040,1764446474148,-263.0,0.00010905,2]
[395111041,1764446474178,-300.0,0.00010905,2]
[395111042,1764446474208,-200.29718179,0.00010905,2]
[395111043,1764446474238,-248.71531821,0.00010906,2]
[395111044,1764446474267,-500.0,0.00010906,2]
[395111045,1764446474296,-500.0,0.00010906,2]
[395111046,1764446474326,-318.04858259,0.00010906,2]
[395111047,1764446474358,-500.0,0.00010906,2]
[395111048,1764446474387,-598.01426306,0.00010906,2]
[395111049,1764446474415,-151.0,0.00010906,2]
[395111050,1764446474448,-500.0,0.00010906,2]
[395111051,1764446474478,-500.0,0.00010906,2]
[395111052,1764446474508,-341.8593087,0.00010906,2]
[395111053,1764446474673,1096.35067612,9.646e-05,2]
[395111054,1764446474933,-158.1406913,0.00010906,2]
[395111055,1764446474961,-500.0,0.00010906,2]
[395111056,1764446474990,-500.0,0.00010906,2]
[395111057,1764446475020,-500.0,0.00010906,2]
[395111058,1764446475048,-151.0,0.00010906,2]
[395111059,1764446475076,-151.0,0.00010906,2]
[395111060,1764446475103,-151.0,0.00010906,2]
[395111061,1764446475131,-151.0,0.00010906,2]
[395111062,1764446475159,-151.0,0.00010906,2]
[395111063,1764446475186,-151.0,0.00010906,2]
[395111064,1764446475215,-151.0,0.00010906,2]
[395111065,1764446475243,-151.0,0.00010906,2]
[395111066,1764446475269,-151.0,0.00010906,2]
[395111067,1764446475299,-151.0,0.00010906,2]
[395111068,1764446475326,-151.0,0.00010906,2]
[395111069,1764446475354,-151.0,0.00010906,2]
[395111070,1764446475382,-151.0,0.00010906,2]
[395111071,1764446475410,-151.0,0.00010906,2]
[395111072,1764446475444,-151.0,0.00010906,2]
[395111073,1764446475473,-151.0,0.00010906,2]
[395111074,1764446475501,-151.0,0.00010906,2]
[395111075,1764446475529,-151.0,0.00010906,2]
[395111076,1764446475557,-151.0,0.00010906,2]
[395111077,1764446475757,-152.8570678,0.00010906,2]
[395111078,1764446475959,640.0144818,0.00010384,2]
[395111079,1764446475987,456.33619432,0.00010384,2]
[395111080,1764446486397,10000.01,0.00010798,2]
[395111081,1764446497390,213.15866169,9.232e-05,2]
[395111082,1764446503887,226.422,0.00010636,2]
[395111083,1764446503920,184.60867399,0.00010636,2]
[395111084,1764446505605,213.15866118,9.232e-05,2]
[395111092,1764446514945,5040.16413094,0.00010798,2]
[395111093,1764446522263,300.0,0.00010906,2]
[395111095,1764446537309,3822.4978722,0.00010798,2]
[395111096,1764446537332,9055.34283172,0.00010798,2]
[395111099,1764446545670,787.37787946,0.00010798,2]
[395111100,1764446567817,5030.13023048,0.00010797,2]
[395111101,1764446583328,-300.0,0.00010905,2]
[395111102,1764446597152,8354.7750334,9.993e-05,2]
[395111103,1764446597517,317.59421531,0.00010797,2]
[395111104,1764446605269,727.64075129,0.00010797,2]
[395111105,1764446605292,7759.16629989,0.00010797,2]
[395111106,1764446609496,2240.84370011,0.00010808,2]
[395111107,1764446609523,10000.01,0.00010808,2]
[395111108,1764446609550,22487.59014151,0.00010808,2]
[395111109,1764446609578,855271.55615838,0.00010808,2]
[395111110,1764446613720,5694.15577108,0.00010797,2]
[395111111,1764446628854,4305.85422892,0.00010797,2]
[395111112,1764446628876,10000.01,0.00010797,2]
[395111113,1764446628898,1217.34789588,0.00010797,2]
[395111114,1764446632941,169.29156943,9.232e-05,2]
[395111115,1764446633651,264.43529148,8.907e-05,2]
[395111116,1764446636628,7367.04921242,0.00010797,2]
[395111117,1764446638857,262.1420623,8.907e-05,2]
[395111118,1764446644731,719.74396849,0.00010797,2]
[395111119,1764446644754,2396.84100333,0.00010797,2]
[395111120,1764446645124,798.86401218,8.907e-05,2]
[395111121,1764446645803,798.86401218,9.618e-05,2]
[395111122,1764446646563,798.86401218,0.0001033,2]
[395111123,1764446652270,313.37153628,0.00010824,2]
[395111124,1764446653033,300.0,0.00010796,2]
[395111125,1764446668194,300.0,0.00010796,2]
[395111126,1764446675950,300.0,0.00010796,2]
[395111127,1764446691417,300.0,0.00010796,2]
[395111128,1764446699153,300.0,0.00010796,2]
[395111129,1764446715144,1674.51012915,0.00010795,2]
[395111130,1764446722958,1718.6952947,0.00010795,2]
[395111131,1764446722982,681.3047053,0.00010795,2]
[395111132,1764446737975,1140.21581085,0.00010795,2]
[395111133,1764446745782,2400.0,0.00010795,2]
[395111134,1764446760889,228.04316217,0.00010795,2]
[395111135,1764446769079,300.0,0.00010794,2]
[395111136,1764446777722,1023.44233896,8.907e-05,2]
[395111137,1764446778324,1023.44233896,9.387e-05,2]
[395111138,1764446779030,1023.44233896,9.866e-05,2]
[395111139,1764446779662,1023.44233896,0.00010346,2]
[395111140,1764446780327,1023.44233896,0.00010826,2]
[395111142,1764446784300,133.23462688,0.00010806,2]
[395111143,1764446784326,10000.01,0.00010806,2]
[395111144,1764446784352,10000.01,0.00010806,2]
[395111145,1764446784377,10000.01,0.00010806,2]
[395111146,1764446784403,10000.01,0.00010806,2]
[395111147,1764446784427,10000.01,0.00010806,2]
[395111148,1764446784452,10000.01,0.00010806,2]
[395111149,1764446784476,10000.01,0.00010806,2]
[395111150,1764446784499,10000.01,0.00010806,2]
[395111151,1764446784527,10000.01,0.00010806,2]
[395111152,1764446784743,444728.44384162,0.00010806,2]
[395111153,1764446791592,826.36471434,8.907e-05,2]
[395111154,1764446792646,826.36471434,9.986e-05,2]
[395111155,1764446801731,18.27057132,8.907e-05,2]
[395111156,1764446801755,1371.90545335,8.907e-05,2]
[395111157,1764446802268,1390.17602467,9.618e-05,2]
[395111158,1764446805366,-1390.17602467,0.0001033,2]
[395111159,1764446807771,-1390.17602467,0.00010227,2]
[395111160,1764446815114,-264.6,0.00010698,2]
[395111161,1764446816155,-4596.67048828,0.00010698,2]
[395111162,1764446816404,-10000.01,0.00010698,2]
[395111163,1764446816961,-10000.01,0.00010698,2]
[395111164,1764446819857,-10000.01,0.00010698,2]
[395111165,1764446820174,-10000.01,0.00010698,2]
[395111166,1764446820319,-10000.01,0.00010698,2]
[395111167,1764446820471,-10000.01,0.00010698,2]
[395111168,1764446820652,-3534.81595015,0.00010698,2]
[395111169,1764446820681,-500.0,0.00010805,2]
[395111170,1764446820708,-338.32941562,0.00010805,2]
[395111171,1764446820736,-541.67525781,0.00010805,2]
[395111172,1764446820810,-170.36875284,0.00010805,2]
[395111173,1764446832088,-631.42598626,0.00010485,2]
[395111174,1764446845108,-1309.91597193,0.0001038,2]
[395111175,1764446845136,-1309.91597193,0.00010485,2]
[395111176,1764446845189,-4760.34611228,0.00010591,2]
[395111177,1764446845424,-3257.3390286,0.00010591,2]
[395111178,1764446845449,-3485.3319428,0.00010591,2]
[395111179,1764446845553,-300.0,0.00010697,2]
[395111180,1764446845582,-185.95555613,0.00010705,2]
[395111181,1764446845611,-500.0,0.00010805,2]
[395111182,1764446845640,-329.63124716,0.00010805,2]
[395111183,1764446845669,-500.0,0.00010805,2]
[395111184,1764446845697,-500.0,0.00010805,2]
[395111185,1764446845725,-500.0,0.00010805,2]
[395111186,1764446845751,-500.0,0.00010805,2]
[395111187,1764446845778,-500.0,0.00010805,2]
[395111188,1764446845805,-500.0,0.00010805,2]
[395111189,1764446845833,-500.0,0.00010805,2]
[395111190,1764446845934,-500.0,0.00010805,2]
[395111191,1764446845961,-500.0,0.00010805,2]
[395111192,1764446845987,-500.0,0.00010805,2]
[395111193,1764446846014,-525.87545973,0.00010805,2]
[395111194,1764446846042,-500.0,0.00010805,2]
[395111195,1764446846070,-500.0,0.00010805,2]
[395111196,1764446846097,-500.0,0.00010805,2]
[395111197,1764446846123,-500.0,0.00010805,2]
[395111198,1764446846334,-333.63479436,0.00010805,2]
[395111199,1764446846361,-500.0,0.00010805,2]
[395111200,1764446846565,-500.0,0.00010805,2]
[395111201,1764446846594,-500.0,0.00010805,2]
[395111202,1764446846622,-500.0,0.00010805,2]
[395111203,1764446846650,-500.0,0.00010805,2]
[395111204,1764446846678,-500.0,0.00010805,2]
[395111205,1764446846707,-225.0,0.00010805,2]
[395111206,1764446846733,-500.0,0.00010805,2]
[395111207,1764446846762,-500.0,0.00010805,2]
[395111208,1764446846791,-500.0,0.00010805,2]
[395111209,1764446846820,-500.0,0.00010805,2]
[395111210,1764446846846,-50.01,0.00010805,2]
[395111211,1764446846977,-449.99,0.00010805,2]
[395111212,1764446847008,-500.0,0.00010805,2]
[395111213,1764446847038,-599.05450379,0.00010805,2]
[395111214,1764446847069,-500.0,0.00010805,2]
[395111215,1764446847100,-500.0,0.00010805,2]
[395111216,1764446847129,-500.0,0.00010805,2]
[395111217,1764446847157,-650.0,0.00010805,2]
[395111218,1764446847185,-500.0,0.00010805,2]
[395111219,1764446847213,-500.0,0.00010805,2]
[395111220,1764446847242,-101.92099242,0.00010805,2]
[395111221,1764446847328,-398.07900758,0.00010805,2]
[395111222,1764446847359,-500.0,0.00010805,2]
[395111223,1764446847389,-500.0,0.00010805,2]
[395111224,1764446847417,-500.0,0.00010805,2]
[395111225,1764446847444,-500.0,0.00010805,2]
[395111226,1764446847472,-425.22279758,0.00010805,2]
[395111227,1764446847499,-500.0,0.00010805,2]
[395111228,1764446847526,-500.0,0.00010805,2]
[395111229,1764446847560,-500.0,0.00010805,2]
[395111230,1764446847587,-595.47908786,0.00010805,2]
[395111231,1764446847638,-595.47908786,0.00010805,2]
[395111232,1764446847666,-595.47908786,0.00010805,2]
[395111233,1764446847694,-595.47908786,0.00010805,2]
[395111234,1764446847722,-595.47908786,0.00010805,2]
[395111235,1764446847749,-595.47908786,0.00010805,2]
[395111236,1764446847777,-595.47908786,0.00010805,2]
[395111237,1764446847810,-595.47908786,0.00010805,2]
[395111238,1764446847836,-595.47908786,0.00010805,2]
[395111239,1764446847916,-595.47908786,0.00010805,2]
[395111240,1764446847947,-595.47908786,0.00010805,2]
[395111241,1764446847975,-595.47908786,0.00010805,2]
[395111242,1764446848004,-595.47908786,0.00010805,2]
[395111243,1764446848033,-595.47908786,0.00010805,2]
[395111244,1764446848061,-595.47908786,0.00010805,2]
[395111245,1764446848089,-595.47908786,0.00010805,2]
[395111246,1764446848120,-595.47908786,0.00010805,2]
[395111247,1764446849266,-2571.62149556,0.00010697,2]
[395111248,1764446849292,-595.47908786,0.00010805,2]
[395111249,1764446849317,-595.47908786,0.00010805,2]
[395111250,1764446849344,-595.47908786,0.00010805,2]
[395111251,1764446849371,-595.47908786,0.00010805,2]
[395111252,1764446850135,-595.47908786,0.00010805,2]
[395111253,1764446850169,-595.47908786,0.00010805,2]
[395111254,1764446850203,-595.47908786,0.00010805,2]
[395111255,1764446850241,-595.47908786,0.00010805,2]
[395111256,1764446850276,-595.47908786,0.00010805,2]
[395111257,1764446850311,-595.47908786,0.00010805,2]
[395111258,1764446850347,-595.47908786,0.00010805,2]
[395111259,1764446850383,-595.47908786,0.00010805,2]
[395111260,1764446850579,-595.47908786,0.00010805,2]
[395111261,1764446850613,-595.47908786,0.00010805,2]
[395111262,1764446850646,-595.47908786,0.00010805,2]
[395111263,1764446850679,-595.47908786,0.00010805,2]
[395111264,1764446850716,-595.47908786,0.00010805,2]
[395111265,1764446850751,-595.47908786,0.00010805,2]
[395111266,1764446850784,-595.47908786,0.00010805,2]
[395111267,1764446850818,-595.47908786,0.00010805,2]
[395111268,1764446850872,-595.47908786,0.00010805,2]
[395111269,1764446850906,-595.47908786,0.00010805,2]
[395111270,1764446850940,-595.47908786,0.00010805,2]
[395111271,1764446850973,-595.47908786,0.00010805,2]
[395111272,1764446851006,-595.47908786,0.00010805,2]
[395111273,1764446851039,-595.47908786,0.00010805,2]
[395111274,1764446851072,-595.47908786,0.00010805,2]
[395111275,1764446851104,-595.47908786,0.00010805,2]
[395111276,1764446852132,-122.80051231,0.00010805,2]
[395111277,1764446852147,-472.67857555,0.00010805,2]
[395111278,1764446852157,-122.80051231,0.00010805,2]
[395111279,1764446852171,-472.67857555,0.00010805,2]
[395111280,1764446852180,-122.80051231,0.00010805,2]
[395111281,1764446852198,-472.67857555,0.00010805,2]
[395111282,1764446852208,-122.80051231,0.00010805,2]
[395111283,1764446852226,-472.67857555,0.00010805,2]
[395111284,1764446852236,-122.80051231,0.00010805,2]
[395111285,1764446852250,-472.67857555,0.00010805,2]
[395111286,1764446852259,-122.80051231,0.00010805,2]
[395111287,1764446852274,-472.67857555,0.00010805,2]
[395111288,1764446852284,-122.80051231,0.00010805,2]
[395111289,1764446852316,-472.67857555,0.00010805,2]
[395111290,1764446852343,-595.47908786,0.00010805,2]
[395111291,1764446852370,-595.47908786,0.00010805,2]
[395111292,1764446852396,-595.47908786,0.00010805,2]
[395111293,1764446852424,-595.47908786,0.00010805,2]
[395111294,1764446852451,-595.47908786,0.00010805,2]
[395111295,1764446852477,-595.47908786,0.00010805,2]
[395111296,1764446852504,-500.0,0.00010805,2]
[395111297,1764446852533,-408.90379458,0.00010805,2]
[395111298,1764446852590,-91.09620542,0.00010805,2]
[395111299,1764446852616,-500.0,0.00010805,2]
[395111300,1764446852642,-500.0,0.00010805,2]
[395111301,1764446852668,-500.0,0.00010805,2]
[395111302,1764446852696,-500.0,0.00010805,2]
[395111303,1764446852722,-500.0,0.00010805,2]
[395111304,1764446852750,-500.0,0.00010805,2]
[395111305,1764446852780,-500.0,0.00010805,2]
[395111306,1764446852810,-500.0,0.00010805,2]
[395111307,1764446852838,-500.0,0.00010805,2]
[395111308,1764446852868,-317.81758916,0.00010805,2]
[395111309,1764446852904,-182.18241084,0.00010805,2]
[395111310,1764446852931,-500.0,0.00010805,2]
[395111311,1764446852957,-500.0,0.00010805,2]
[395111312,1764446852984,-500.0,0.00010805,2]
[395111313,1764446853011,-500.0,0.00010805,2]
[395111314,1764446853039,-500.0,0.00010805,2]
[395111315,1764446853067,-500.0,0.00010805,2]
[395111316,1764446853093,-500.0,0.00010805,2]
[395111317,1764446853122,-500.0,0.00010805,2]
[395111318,1764446853149,-500.0,0.00010805,2]
[395111319,1764446853176,-135.64517832,0.00010805,2]
[395111320,1764446853270,-364.35482168,0.00010805,2]
[395111321,1764446853297,-500.0,0.00010805,2]
[395111322,1764446853326,-500.0,0.00010805,2]
[395111323,1764446853356,-500.0,0.00010805,2]
[395111324,1764446853386,-500.0,0.00010805,2]
[395111325,1764446853419,-500.0,0.00010805,2]
[395111326,1764446853448,-500.0,0.00010805,2]
[395111327,1764446853477,-576.928163,0.00010805,2]
[395111328,1764446853506,-500.0,0.00010805,2]
[395111329,1764446853534,-500.0,0.00010805,2]
[395111330,1764446854351,261.38112407,8.907e-05,2]
[395111331,1764446854607,-137.63343794,0.00010805,2]
[395111332,1764446854627,-362.36656206,0.00010805,2]
[395111333,1764446854636,-137.63343794,0.00010805,2]
[395111334,1764446854651,-293.88828445,0.00010805,2]
[395111335,1764446854661,-206.11171555,0.00010805,2]
[395111336,1764446854675,-117.44403064,0.00010805,2]
[395111337,1764446854919,-176.44425381,0.00010805,2]
[395111338,1764446854950,-500.0,0.00010805,2]
[395111339,1764446854979,-500.0,0.00010805,2]
[395111340,1764446855009,-500.0,0.00010805,2]
[395111341,1764446855039,-500.0,0.00010805,2]
[395111342,1764446855069,-500.0,0.00010805,2]
[395111343,1764446855097,-500.0,0.00010805,2]
[395111344,1764446855127,-500.0,0.00010805,2]
[395111345,1764446855156,-500.0,0.00010805,2]
[395111346,1764446855186,-500.0,0.00010805,2]
[395111347,1764446855216,-147.12149238,0.00010805,2]
[395111348,1764446855255,-352.87850762,0.00010805,2]
[395111349,1764446855282,-500.0,0.00010805,2]
[395111350,1764446855310,-500.0,0.00010805,2]
[395111351,1764446855338,-500.0,0.00010805,2]
[395111352,1764446855369,-500.0,0.00010805,2]
[395111353,1764446855399,-500.0,0.00010805,2]
[395111354,1764446855427,-500.0,0.00010805,2]
[395111355,1764446855456,-500.0,0.00010805,2]
[395111356,1764446855485,-500.0,0.00010805,2]
[395111357,1764446855514,-500.0,0.00010805,2]
[395111358,1764446855669,-500.0,0.00010805,2]
[395111359,1764446855697,-500.0,0.00010805,2]
[395111360,1764446855725,-500.0,0.00010805,2]
[395111361,1764446855752,-500.0,0.00010805,2]
[395111362,1764446855807,-500.0,0.00010805,2]
[395111363,1764446855833,-589.52429699,0.00010805,2]
[395111364,1764446855864,-589.52429699,0.00010805,2]
[395111365,1764446855891,-589.52429699,0.00010805,2]
[395111366,1764446855917,-589.52429699,0.00010805,2]
[395111367,1764446855965,-589.52429699,0.00010805,2]
[395111368,1764446855992,-589.52429699,0.00010805,2]
[395111369,1764446856019,-589.52429699,0.00010805,2]
[395111370,1764446856047,-589.52429699,0.00010805,2]
[395111371,1764446856076,-589.52429699,0.00010805,2]
[395111372,1764446856105,-589.52429699,0.00010805,2]
[395111373,1764446856131,-589.52429699,0.00010805,2]
[395111374,1764446856157,-589.52429699,0.00010805,2]
[395111375,1764446856242,-589.52429699,0.00010805,2]
[395111376,1764446856281,-589.52429699,0.00010805,2]
[395111377,1764446856311,-589.52429699,0.00010805,2]